fUST/lending_fUST_20251102
["ID","MTS","AMOUNT","RATE_DAILY","PERIOD"]
[392851894,1762060120533,406.0,0.000226,2]
[392851895,1762060128072,999.0,0.00022317,2]
[392851898,1762060138077,-153.99755623,0.00023171,2]
[392851899,1762060138100,-125.90585776,0.00023186,2]
[392851900,1762060140579,1110.54616507,0.00022885,2]
[392851909,1762060148949,279.90341399,0.00023162,2]
[392851912,1762060152525,155.0,0.00022,2]
[392851913,1762060152955,155.0,0.00022192,7]
[392851938,1762060232132,-155.0,0.00023014,7]
[392851939,1762060232147,-294.09414224,0.00023186,2]
[392851940,1762060232163,-500.0,0.000232,2]
[392851941,1762060232176,-411.17646396,0.00023248,2]
[392851942,1762060236693,-698.99881932,0.00023248,2]
[392851943,1762060236705,-1110.54616507,0.00023257,2]
[392851944,1762060236717,-389.0,0.00023259,2]
[392851945,1762060236730,-406.0,0.00023328,2]
[392851946,1762060236741,-151.0,0.00023343,2]
[392851947,1762060236755,-151.0,0.00023343,2]
[392851948,1762060236769,-151.0,0.00023343,2]
[392851949,1762060236783,-151.0,0.00023343,2]
[392851950,1762060236796,-151.0,0.00023343,2]
[392851951,1762060236808,-151.0,0.00023343,2]
[392851952,1762060236820,-151.0,0.00023343,2]
[392851953,1762060236832,-151.0,0.00023343,2]
[392851954,1762060236843,-151.0,0.00023343,2]
[392851955,1762060236855,-151.0,0.00023343,2]
[392851956,1762060236867,-151.0,0.00023343,2]
[392851957,1762060236881,-151.0,0.00023343,2]
[392851958,1762060236894,-151.0,0.00023343,2]
[392851959,1762060236906,-151.0,0.00023343,2]
[392851960,1762060236917,-151.0,0.00023343,2]
[392851961,1762060236930,-151.0,0.00023343,2]
[392851962,1762060236943,-151.0,0.00023343,2]
[392851963,1762060236954,-151.0,0.00023343,2]
[392851964,1762060236966,-151.0,0.00023343,2]
[392851965,1762060236978,-151.0,0.00023343,2]
[392851966,1762060236989,-200.0,0.00023344,2]
[392851967,1762060237000,-500.0,0.00023344,2]
[392851968,1762060237011,-500.0,0.00023344,2]
[392851969,1762060237024,-500.0,0.00023344,2]
[392851970,1762060237035,-500.0,0.00023344,2]
[392851971,1762060237049,-500.0,0.00023344,2]
[392851972,1762060237060,-500.0,0.00023344,2]
[392851973,1762060237072,-322.57657115,0.00023344,2]
[392851974,1762060237085,-520.93031207,0.00023344,2]
[392851975,1762060237096,-405.11710934,0.00023344,2]
[392851976,1762060237107,-495.0,0.00023344,2]
[392851977,1762060237118,-300.0,0.00023344,2]
[392851978,1762060237130,-1200.0,0.00023344,2]
[392851979,1762060237142,-14530.23922371,0.00023345,2]
[392851984,1762060238132,-33205.6303355,0.00023345,2]
[392851985,1762060238146,-1429.14819018,0.00023345,2]
[392851986,1762060238158,-420.0,0.00023348,2]
[392851987,1762060238170,-946.87,0.0002335,10]
[392851988,1762060238181,-500.0,0.00023356,2]
[392851989,1762060238192,-500.0,0.00023356,2]
[392851990,1762060238204,-500.0,0.00023356,2]
[392851991,1762060238215,-500.0,0.00023358,2]
[392851992,1762060238227,-500.0,0.00023358,2]
[392851993,1762060238237,-500.0,0.00023358,2]
[392851994,1762060238249,-290.50943435,0.00023358,2]
[392851995,1762060238260,-502.31271572,0.00023358,2]
[392851996,1762060238271,-500.0,0.00023358,2]
[392851997,1762060238282,-500.0,0.00023358,2]
[392851998,1762060238294,-537.77136983,0.00023359,2]
[392851999,1762060238305,-500.0,0.00023359,2]
[392852000,1762060238317,-468.78352559,0.00023359,2]
[392852001,1762060238326,-500.0,0.00023359,2]
[392852002,1762060238456,-500.0,0.00023359,2]
[392852003,1762060238476,-318.87816156,0.00023359,2]
[392852004,1762060238485,-11738.24448866,0.0002336,2]
[392852005,1762060238498,-18872.65883634,0.0002336,2]
[392852006,1762060238507,-154.424333,0.0002336,7]
[392852007,1762060238517,-151.0,0.0002336,7]
[392852008,1762060238527,-162.253148,0.0002336,7]
[392852009,1762060238536,-154.397981,0.0002336,7]
[392852010,1762060238547,-151.0,0.0002336,7]
[392852011,1762060238557,-151.0,0.0002336,7]
[392852012,1762060238567,-151.0,0.0002336,7]
[392852013,1762060238577,-161.768587,0.0002336,7]
[392852014,1762060238586,-151.0,0.0002336,7]
[392852015,1762060238596,-152.651578,0.0002336,7]
[392852016,1762060238607,-151.562416,0.0002336,7]
[392852017,1762060238617,-154.484516,0.0002336,7]
[392852018,1762060238627,-158.534972,0.0002336,7]
[392852019,1762060238636,-151.0,0.0002336,7]
[392852020,1762060238646,-285.384486,0.0002336,7]
[392852021,1762060238655,-275.139887,0.0002336,7]
[392852022,1762060238665,-1136.25,0.00023363,10]
[392852023,1762060238675,-503.3811615,0.00023373,2]
[392852024,1762060238685,-504.02433699,0.00023373,2]
[392852025,1762060238694,-501.73555332,0.00023373,2]
[392852026,1762060238703,-500.0,0.00023373,2]
[392852027,1762060238713,-500.0,0.00023373,2]
[392852028,1762060238722,-502.15661401,0.00023373,2]
[392852029,1762060238732,-502.19292659,0.00023373,2]
[392852030,1762060238741,-501.28282757,0.00023373,2]
[392852031,1762060238750,-509.34718282,0.00023373,2]
[392852032,1762060238760,-500.0,0.00023373,2]
[392852033,1762060238769,-500.0,0.00023373,2]
[392852034,1762060238779,-266.63125516,0.00023373,2]
[392852035,1762060238789,-500.0,0.00023373,2]
[392852036,1762060238798,-151.0,0.00023373,7]
[392852037,1762060238807,-981.82,0.000234,2]
[392852038,1762060238817,-151.0,0.000234,7]
[392852039,1762060238827,-152.904324,0.000234,7]
[392852040,1762060238836,-162.920255,0.000234,7]
[392852041,1762060238846,-504.52391419,0.00023441,2]
[392852042,1762060238857,-1110.54616509,0.00023472,2]
[392852043,1762060238866,-484.67,0.00023579,7]
[392852044,1762060238876,-480.0,0.00023608,2]
[392852045,1762060238886,-513.28596321,0.00023647,2]
[392852046,1762060238903,-151.0,0.00023679,7]
[392852047,1762060238916,-480.0,0.00023679,2]
[392852048,1762060238927,-420.0,0.0002373,2]
[392852049,1762060238937,-151.0,0.00023765,7]
[392852050,1762060238947,-154.238668,0.00023765,7]
[392852051,1762060238958,-185.120993,0.00023766,7]
[392852052,1762060238968,-151.0,0.00023766,2]
[392852053,1762060238978,-500.0,0.00023766,2]
[392852054,1762060238988,-151.0,0.00023766,2]
[392852055,1762060238997,-500.0,0.00023766,2]
[392852056,1762060239007,-2988.0,0.00023766,2]
[392852057,1762060239017,-212.82426895,0.0002379,7]
[392852058,1762060239027,-500.0,0.00023792,2]
[392852059,1762060239036,-160.60457,0.000238,7]
[392852060,1762060239046,-151.0,0.00023821,2]
[392852061,1762060239055,-500.0,0.00023821,2]
[392852062,1762060239065,-151.0,0.00023821,2]
[392852063,1762060239075,-500.0,0.00023821,2]
[392852064,1762060239085,-2988.0,0.00023821,2]
[392852065,1762060239094,-153.226263,0.00023863,7]
[392852066,1762060239105,-203.287438,0.00023863,7]
[392852067,1762060239116,-286.18064719,0.00023876,2]
[392852068,1762060239126,-500.0,0.00023876,2]
[392852069,1762060239137,-200.30244362,0.00023876,2]
[392852070,1762060239147,-500.0,0.00023876,2]
[392852071,1762060239157,-2988.0,0.00023876,2]
[392852072,1762060239167,-500.0,0.00023878,2]
[392852073,1762060239178,-500.0,0.00023879,2]
[392852074,1762060239187,-500.0,0.00023889,2]
[392852075,1762060239197,-500.0,0.00023889,2]
[392852076,1762060239207,-500.0,0.00023889,2]
[392852077,1762060239218,-500.0,0.00023889,2]
[392852078,1762060239228,-196.17069518,0.00023889,2]
[392852079,1762060239238,-151.0,0.000239,10]
[392852080,1762060239248,-580.44488331,0.00023918,7]
[392852081,1762060239257,-1000.0,0.00023921,2]
[392852082,1762060239267,-1000.0,0.00023921,2]
[392852083,1762060239278,-1000.0,0.00023921,2]
[392852084,1762060239288,-1000.0,0.00023921,2]
[392852085,1762060239299,-500.0,0.0002393,2]
[392852086,1762060239309,-500.0,0.0002393,2]
[392852087,1762060239319,-2988.0,0.0002393,2]
[392852088,1762060239328,-1200.0,0.00023954,2]
[392852089,1762060239338,-156.85699325,0.00023965,3]
[392852090,1762060239352,-106.89300675,0.00023965,3]
[392852091,1762060239363,-407.9006749,0.00023973,2]
[392852092,1762060239373,-500.80748336,0.00023973,2]
[392852093,1762060239383,-299.4853586,0.00023973,2]
[392852094,1762060239392,-1054.98,0.00023975,3]
[392852095,1762060239401,-527.49,0.00023975,3]
[392852096,1762060239410,-791.27,0.00023975,3]
[392852097,1762060239420,-500.01620535,0.00023985,2]
[392852098,1762060239429,-500.0,0.00023985,2]
[392852099,1762060239439,-543.09549688,0.00023985,2]
[392852106,1762060240326,-3e-08,0.00023985,2]
[392852126,1762060243205,-515.04116461,0.00023985,2]
[392852132,1762060243257,-1929.86333848,0.00023985,2]
[392852134,1762060243266,-2109.97,0.0002399,3]
[392852136,1762060243276,-151.0,0.00024,5]
[392852138,1762060243286,-181.62311624,0.00024,2]
[392852141,1762060243296,-4219.93,0.0002403,3]
[392852143,1762060243306,-500.0,0.0002404,2]
[392852145,1762060243315,-2988.0,0.0002404,2]
[392852147,1762060243324,-8439.87,0.00024072,3]
[392852149,1762060243334,-500.0,0.00024095,2]
[392852151,1762060243343,-2988.0,0.00024095,2]
[392852153,1762060243353,-151.0,0.000241,5]
[392852155,1762060243363,-151.0,0.000241,5]
[392852157,1762060243372,-377.7008855,0.00024141,2]
[392852159,1762060243381,-532.5020104,0.00024141,2]
[392852161,1762060243390,-958.50361872,0.00024141,2]
[392852163,1762060243399,-1704.00643327,0.00024141,2]
[392852165,1762060243407,-359.87102936,0.00024141,2]
[392852167,1762060243417,-647.76785285,0.00024141,2]
[392852169,1762060243426,-1151.58729396,0.00024141,2]
[392852171,1762060243435,-1799.35514682,0.00024141,2]
[392852173,1762060243444,-193.68556039,0.00024141,2]
[392852175,1762060243453,-348.6340087,0.00024141,2]
[392852176,1762060243463,-619.79379325,0.00024141,2]
[392852178,1762060243476,-420.0,0.00024146,2]
[392852181,1762060243486,-500.0,0.0002415,2]
[392852182,1762060243495,-2988.0,0.0002415,2]
[392852184,1762060243504,-155.0,0.00024164,7]
[392852187,1762060243515,-151.0,0.000242,5]
[392852188,1762060243524,-160.0,0.000242,2]
[392852191,1762060243534,-500.0,0.00024204,2]
[392852193,1762060243544,-2988.0,0.00024204,2]
[392852194,1762060243554,-500.0,0.0002422,2]
[392852197,1762060243563,-196.0,0.00024254,2]
[392852198,1762060243573,-404.20839093,0.00024259,2]
[392852200,1762060243584,-2988.0,0.00024259,2]
[392852202,1762060243593,-480.0,0.00024275,2]
[392852205,1762060243603,-480.0,0.00024281,2]
[392852207,1762060243612,-196.0,0.00024292,2]
[392852209,1762060243622,-151.0,0.000243,5]
[392852211,1762060243631,-151.0,0.000243,8]
[392852213,1762060243640,-2988.0,0.00024314,2]
[392852215,1762060243650,-1637.70488962,0.0002433,2]
[392852217,1762060243659,-2988.0,0.00024369,2]
[392852219,1762060243668,-151.0,0.000244,9]
[392852220,1762060243677,-151.0,0.000244,7]
[392852222,1762060243687,-2988.0,0.00024424,2]
[392852224,1762060243696,-281.0,0.00024426,2]
[392852226,1762060243705,-342.07477217,0.00024466,7]
[392852228,1762060243715,-1500.0,0.00024468,2]
[392852230,1762060243725,-1504.52065524,0.00024468,2]
[392852233,1762060243734,-1526.47944252,0.00024468,2]
[392852234,1762060243743,-1500.0,0.00024468,2]
[392852236,1762060243752,-170.875,0.00024473,7]
[392852238,1762060243762,-425.038,0.00024478,2]
[392852240,1762060243772,-2988.0,0.00024478,2]
[392852242,1762060243782,-281.0,0.0002448,2]
[392852244,1762060243791,-151.0,0.000245,5]
[392852247,1762060243803,-151.0,0.000245,7]
[392852249,1762060243813,-2988.0,0.00024533,2]
[392852251,1762060243822,-2988.0,0.00024588,2]
[392852253,1762060243831,-151.0,0.000246,7]
[392852255,1762060243840,-151.0,0.000246,8]
[392852257,1762060243850,-2988.0,0.00024643,2]
[392852259,1762060243860,-3710.81313224,0.0002465,2]
[392852260,1762060243869,-500.0,0.00024658,2]
[392852263,1762060243879,-2988.0,0.00024698,2]
[392852264,1762060243888,-386.39,0.000247,14]
[392852267,1762060243898,-7519.34319399,0.000247,7]
[392852421,1762060271296,150.0,0.00020588,2]
[392852438,1762060335265,150.0,0.0001998,2]
[392852439,1762060372644,999.0,0.00032876,120]
[392852441,1762060399954,150.0,0.00020388,2]
[392852442,1762060400638,-502.89738931,0.00023041,2]
[392852443,1762060418718,-926.42961745,0.00023041,2]
[392852444,1762060420968,-160.51773996,0.00023041,2]
[392852445,1762060429086,-391.21520603,0.00023041,2]
[392852446,1762060431980,-508.90833633,0.00023041,2]
[392852447,1762060447629,-408.53034593,0.00023041,2]
[392852448,1762060452685,508.90833633,0.00023,2]
[392852449,1762060453065,-569.67903736,0.00023041,2]
[392852450,1762060455662,-348.81486615,0.00023041,2]
[392852451,1762060460229,-315.8224616,0.00023041,2]
[392852452,1762060474977,1642.84671104,0.00023,2]
[392852465,1762060500095,151.0,0.000224,10]
[392852466,1762060500377,151.0,0.000205,4]
[392852468,1762060500673,151.0,0.000186,2]
[392852469,1762060500959,151.0,0.000167,2]
[392852470,1762060501314,151.0,0.000148,2]
[392852471,1762060501697,151.0,0.000129,2]
[392852472,1762060501995,151.0,0.00011,2]
[392852476,1762060507361,1000.0,0.0003798,60]
[392852477,1762060507391,151.0,0.0003798,60]
[392852478,1762060507989,1000.0,0.0003798,60]
[392852479,1762060508019,151.0,0.0003798,60]
[392852480,1762060508597,1000.0,0.0003798,60]
[392852481,1762060508635,151.0,0.0003798,60]
[392852482,1762060509244,1000.0,0.0003798,60]
[392852483,1762060509276,151.0,0.0003798,60]
[392852487,1762060509844,1000.0,0.0003798,60]
[392852489,1762060509907,151.0,0.0003798,60]
[392852490,1762060510053,879.86156457,0.0003798,60]
[392852494,1762060510500,1000.0,0.0003798,60]
[392852496,1762060510645,151.0,0.0003798,60]
[392852502,1762060511136,1000.0,0.0003798,60]
[392852516,1762060612719,1000.0,0.00032876,120]
[392852519,1762060643763,1691.9515886,0.00022341,2]
[392852524,1762060750342,464.04879801,0.00037981,120]
[392852525,1762060793523,4177.17064427,0.00037981,120]
[392852527,1762060809616,926.26437179,0.00037981,120]
[392852534,1762060912694,526.064424,0.00022336,2]
[392852634,1762061054154,435.245152,0.00013699,2]
[392852635,1762061054236,435.245152,0.00020187,2]
[392852637,1762061097032,100355.50623041,0.00037981,60]
[392852639,1762061151640,901.4635298,0.00022316,2]
[392852640,1762061169071,9098.5464702,0.00023,2]
[392852641,1762061169094,10000.01,0.00023,2]
[392852642,1762061169120,39214.1535298,0.00023,2]
[392852650,1762061284454,421.66711045,0.00010618,2]
[392852652,1762061304499,6742.69092086,0.00017,2]
[392852654,1762061311959,32066.12103038,0.00037981,60]
[392852681,1762061332729,-214.38847511,0.00023041,2]
[392852686,1762061407234,381.0,0.00023041,2]
[392852687,1762061420024,381.98308222,0.00022941,2]
[392852688,1762061431868,168.0,0.00023032,2]
[392852703,1762061432423,-652.79652477,0.00023041,2]
[392852704,1762061432434,-205.5120005,0.00023054,2]
[392852705,1762061432443,-257.37033115,0.00023323,2]
[392852706,1762061432453,-151.0,0.00023323,2]
[392852707,1762061432462,-151.0,0.00023323,2]
[392852708,1762061432471,-151.0,0.00023323,2]
[392852709,1762061432481,-151.0,0.00023323,2]
[392852710,1762061432491,-151.0,0.00023323,2]
[392852711,1762061432500,-151.0,0.00023323,2]
[392852712,1762061432510,-151.0,0.00023323,2]
[392852713,1762061432519,-151.0,0.00023323,2]
[392852714,1762061432528,-151.0,0.00023323,2]
[392852715,1762061432538,-151.0,0.00023323,2]
[392852716,1762061432548,-151.0,0.00023323,2]
[392852717,1762061432558,-151.0,0.00023323,2]
[392852718,1762061432567,-151.0,0.00023323,2]
[392852719,1762061432576,-151.0,0.00023323,2]
[392852720,1762061432586,-151.0,0.00023323,2]
[392852721,1762061432595,-151.0,0.00023323,2]
[392852722,1762061432604,-151.0,0.00023323,2]
[392852723,1762061432614,-151.0,0.00023323,2]
[392852724,1762061432623,-151.0,0.00023323,2]
[392852725,1762061432633,-151.0,0.00023323,2]
[392852726,1762061432643,-300.0,0.00023325,2]
[392852727,1762061432652,-1200.0,0.00023325,2]
[392852728,1762061432661,-179.18,0.00023325,2]
[392852729,1762061432671,-3853.96802954,0.00023326,2]
[392852730,1762061432681,-302.83706945,0.00023338,2]
[392852777,1762061440615,-3e-08,0.00023334,2]
[392852990,1762061443459,-499.99999997,0.00023334,2]
[392852991,1762061443470,-500.0,0.00023334,2]
[392852992,1762061443479,-500.0,0.00023334,2]
[392852993,1762061443489,-500.0,0.00023334,2]
[392852994,1762061443499,-500.0,0.00023334,2]
[392852995,1762061443508,-500.0,0.00023334,2]
[392852996,1762061443518,-500.0,0.00023334,2]
[392852997,1762061443527,-500.0,0.00023334,2]
[392852998,1762061443536,-162.47904137,0.00023334,2]
[392852999,1762061443546,-500.0,0.00023334,2]
[392853000,1762061443555,-500.0,0.00023334,2]
[392853002,1762061443565,-500.0,0.00023334,2]
[392853004,1762061443575,-500.0,0.00023334,2]
[392853006,1762061443584,-500.0,0.00023334,2]
[392853007,1762061443593,-500.0,0.00023334,2]
[392853009,1762061443603,-500.0,0.00023334,2]
[392853010,1762061443612,-500.0,0.00023334,2]
[392853011,1762061443622,-500.0,0.00023334,2]
[392853012,1762061443631,-500.0,0.00023334,2]
[392853013,1762061443640,-175.55255813,0.00023334,2]
[392853014,1762061443650,-500.0,0.00023334,2]
[392853015,1762061443659,-577.90672948,0.00023334,2]
[392853016,1762061443668,-500.0,0.00023334,2]
[392853017,1762061443677,-500.0,0.00023334,2]
[392853018,1762061443687,-500.0,0.00023334,2]
[392853019,1762061443696,-500.0,0.00023334,2]
[392853020,1762061443705,-500.0,0.00023334,2]
[392853021,1762061443714,-500.0,0.00023334,2]
[392853022,1762061443723,-500.0,0.00023334,2]
[392853023,1762061443732,-500.0,0.00023334,2]
[392853024,1762061443742,-500.0,0.00023334,2]
[392853025,1762061443751,-500.0,0.00023334,2]
[392853026,1762061443760,-500.0,0.00023334,2]
[392853027,1762061443769,-500.0,0.00023334,2]
[392853028,1762061443779,-500.0,0.00023334,2]
[392853029,1762061443789,-500.0,0.00023334,2]
[392853030,1762061443799,-500.0,0.00023334,2]
[392853031,1762061443808,-500.0,0.00023334,2]
[392853032,1762061443818,-500.0,0.00023334,2]
[392853033,1762061443827,-500.0,0.00023334,2]
[392853034,1762061443837,-500.0,0.00023334,2]
[392853035,1762061443847,-500.0,0.00023334,2]
[392853036,1762061443856,-447.27352253,0.00023334,2]
[392853039,1762061446832,-52.72647747,0.00023334,2]
[392853040,1762061446841,-500.0,0.00023334,2]
[392853041,1762061446851,-500.0,0.00023334,2]
[392853042,1762061446860,-500.0,0.00023334,2]
[392853043,1762061446869,-500.0,0.00023334,2]
[392853044,1762061446879,-500.0,0.00023334,2]
[392853045,1762061446889,-500.0,0.00023334,2]
[392853046,1762061446899,-500.0,0.00023334,2]
[392853047,1762061446908,-500.0,0.00023334,2]
[392853048,1762061446918,-500.0,0.00023334,2]
[392853049,1762061446927,-500.0,0.00023334,2]
[392853050,1762061446937,-500.0,0.00023334,2]
[392853051,1762061447048,-500.0,0.00023334,2]
[392853052,1762061447060,-500.0,0.00023334,2]
[392853053,1762061447069,-500.0,0.00023334,2]
[392853054,1762061447079,-500.0,0.00023334,2]
[392853055,1762061447088,-500.0,0.00023334,2]
[392853056,1762061447097,-500.0,0.00023334,2]
[392853057,1762061447106,-500.0,0.00023334,2]
[392853058,1762061447115,-500.0,0.00023334,2]
[392853059,1762061447124,-500.0,0.00023334,2]
[392853060,1762061447134,-500.0,0.00023334,2]
[392853061,1762061447143,-500.0,0.00023334,2]
[392853062,1762061447153,-500.0,0.00023334,2]
[392853063,1762061447162,-500.0,0.00023334,2]
[392853064,1762061447171,-500.0,0.00023334,2]
[392853065,1762061447181,-500.0,0.00023334,2]
[392853066,1762061447191,-500.0,0.00023334,2]
[392853067,1762061447200,-500.0,0.00023334,2]
[392853068,1762061447209,-500.0,0.00023334,2]
[392853069,1762061447219,-500.0,0.00023334,2]
[392853070,1762061447229,-500.0,0.00023334,2]
[392853071,1762061447238,-500.0,0.00023334,2]
[392853072,1762061447247,-500.0,0.00023334,2]
[392853073,1762061447256,-500.0,0.00023334,2]
[392853074,1762061447265,-500.0,0.00023334,2]
[392853075,1762061447274,-500.0,0.00023334,2]
[392853076,1762061447284,-500.0,0.00023334,2]
[392853077,1762061447293,-500.0,0.00023334,2]
[392853078,1762061447302,-500.0,0.00023334,2]
[392853079,1762061447311,-500.0,0.00023334,2]
[392853080,1762061447320,-500.0,0.00023334,2]
[392853081,1762061447330,-500.0,0.00023334,2]
[392853082,1762061447339,-500.0,0.00023334,2]
[392853083,1762061447348,-500.0,0.00023334,2]
[392853084,1762061447357,-286.37973803,0.00023334,2]
[392853085,1762061447366,-500.0,0.00023334,2]
[392853086,1762061447375,-302.97681908,0.00023334,2]
[392853087,1762061447388,-500.0,0.00023334,2]
[392853088,1762061447397,-500.0,0.00023334,2]
[392853089,1762061447406,-500.0,0.00023336,2]
[392853090,1762061447415,-287.08923268,0.00023336,2]
[392853091,1762061447424,-500.0,0.00023356,2]
[392853092,1762061447434,-516.08266508,0.00023373,2]
[392853093,1762061447444,-308.42499578,0.00023373,2]
[392853094,1762061447452,-500.0,0.00023373,2]
[392853095,1762061447461,-403.90975356,0.00023373,2]
[392853096,1762061447471,-151.0,0.00023373,2]
[392853097,1762061447480,-1378.569037,0.00023427,2]
[392853098,1762061447489,-186.8593467,0.00023459,2]
[392853099,1762061447498,-1000.0,0.000235,2]
[392853100,1762061447507,-544.0,0.00023547,2]
[392853101,1762061447516,-168.0,0.00023562,2]
[392853102,1762061447526,-544.0,0.00023604,2]
[392853103,1762061447535,-168.0,0.00023666,2]
[392853104,1762061447544,-544.0,0.00023669,2]
[392853105,1762061447553,-168.0,0.00023705,2]
[392853106,1762061447562,-544.0,0.00023706,2]
[392853107,1762061447572,-168.0,0.00023782,2]
[392853108,1762061447581,-1451.23860359,0.00023806,2]
[392853109,1762061447590,-544.0,0.00023852,2]
[392853110,1762061447599,-11291.37244462,0.00023856,2]
[392853111,1762061447608,-586.98613913,0.00023856,2]
[392853112,1762061447618,-794.2857326,0.00023863,2]
[392853113,1762061447627,-2113.93,0.0002387,10]
[392853114,1762061447637,-564.98599446,0.00023872,2]
[392853115,1762061447646,-500.0,0.00023873,2]
[392853116,1762061447655,-501.40933896,0.00023873,2]
[392853117,1762061447667,-501.18219536,0.00023873,2]
[392853118,1762061447677,-500.0,0.00023873,2]
[392853119,1762061447686,-500.0,0.00023873,2]
[392853120,1762061447695,-500.0,0.00023873,2]
[392853121,1762061447704,-500.0,0.00023873,2]
[392853122,1762061447713,-500.0,0.00023873,2]
[392853123,1762061447723,-355.10067221,0.00023873,2]
[392853124,1762061447732,-500.0,0.00023873,2]
[392853125,1762061447741,-500.0,0.00023873,2]
[392853126,1762061447750,-500.0,0.00023873,2]
[392853127,1762061447760,-151.0,0.0002388,2]
[392853128,1762061447769,-5538.66,0.0002388,3]
[392853129,1762061447779,-2769.33,0.0002388,3]
[392853130,1762061447789,-1384.66,0.0002388,3]
[392853131,1762061447798,-692.33,0.0002388,3]
[392853132,1762061447807,-346.17,0.0002388,3]
[392853133,1762061447817,-173.08,0.0002388,3]
[392853134,1762061447827,-519.29,0.0002388,3]
[392853135,1762061447837,-2536.72,0.0002388,10]
[392853136,1762061447846,-1761.61,0.0002388,10]
[392853137,1762061447855,-151.0,0.0002389,2]
[392853138,1762061447864,-685000.0,0.0002389,2]
[392853139,1762061447874,-544.0,0.00023956,2]
[392853140,1762061447884,-500.66955988,0.00023973,2]
[392853141,1762061447894,-500.0,0.00023973,2]
[392853142,1762061447904,-500.0,0.00023973,2]
[392853143,1762061447914,-503.39201185,0.00023973,2]
[392853144,1762061447924,-500.0,0.00023973,2]
[392853145,1762061447933,-100000.0,0.0002399,2]
[392853146,1762061447942,-158.834008,0.0002399,2]
[392853147,1762061447952,-717.82893655,0.00023992,3]
[392853148,1762061447961,-163.7731652,0.00024,2]
[392853149,1762061447970,-311.401157,0.00024,2]
[392853150,1762061447980,-661.3407261,0.00024,2]
[392853151,1762061447989,-163.7731652,0.00024,2]
[392853152,1762061447999,-299.5114505,0.00024,2]
[392853153,1762061448008,-591.5954373,0.00024,2]
[392853154,1762061448017,-206.70172914,0.00024141,2]
[392853155,1762061448027,-453.0463871,0.00024141,2]
[392853156,1762061448036,-815.48349678,0.00024141,2]
[392853157,1762061448045,-826.80691655,0.00024141,2]
[392853158,1762061448054,-1860.31556224,0.00024141,2]
[392853159,1762061448064,-33161.39279842,0.00024142,2]
[392853160,1762061448073,-221.291342,0.00024164,2]
[392853161,1762061448082,-163.7731652,0.00024164,2]
[392853162,1762061448091,-591.5954373,0.00024164,2]
[392853163,1762061448101,-299.5114505,0.00024164,2]
[392853164,1762061448111,-299.5114505,0.00024164,2]
[392853165,1762061448120,-163.7731652,0.00024164,2]
[392853166,1762061448130,-591.5954373,0.00024164,2]
[392853167,1762061448140,-163.7731652,0.00024164,2]
[392853168,1762061448149,-591.5954373,0.00024164,2]
[392853169,1762061448159,-1088.8685214,0.00024173,2]
[392853170,1762061448168,-187.43691019,0.00024176,2]
[392853171,1762061448178,-544.0,0.00024191,2]
[392853172,1762061448187,-1556.11833232,0.00024221,3]
[392853173,1762061448197,-544.0,0.00024237,2]
[392853174,1762061448206,-151.0,0.000243,10]